fUST/lending_fUST_20250806
["ID","MTS","AMOUNT","RATE_DAILY","PERIOD"]
[377456889,1754416252035,-460.0,0.00027671,2]
[377456890,1754416252045,-460.0,0.00027671,2]
[377456891,1754416252055,-460.0,0.00027671,2]
[377456892,1754416252064,-844.14,0.00027671,2]
[377456893,1754416252075,-460.0,0.00027671,2]
[377456894,1754416252085,-1000.34,0.00027671,2]
[377456895,1754416252094,-460.0,0.00027671,2]
[377456896,1754416252104,-2193.9,0.00027671,2]
[377456897,1754416252114,-460.0,0.00027671,2]
[377456898,1754416252123,-460.0,0.00027671,2]
[377456899,1754416252133,-460.0,0.00027671,2]
[377456900,1754416252143,-460.0,0.00027671,2]
[377456901,1754416252152,-460.0,0.00027671,2]
[377456902,1754416252162,-519.7,0.00027671,2]
[377456903,1754416252172,-460.0,0.00027671,2]
[377456904,1754416252181,-460.0,0.00027671,2]
[377456906,1754416252191,-460.0,0.00027671,2]
[377456907,1754416252201,-564.35631308,0.00027671,2]
[377456908,1754416252209,-460.0,0.00027671,2]
[377456909,1754416252219,-395.1115109,0.00027671,2]
[377456910,1754416252227,-460.0,0.00027671,2]
[377456911,1754416252236,-460.0,0.00027671,2]
[377456912,1754416252246,-460.0,0.00027671,2]
[377456913,1754416252255,-460.0,0.00027671,2]
[377456914,1754416252264,-460.0,0.00027671,2]
[377456915,1754416252273,-274.49958321,0.00027671,2]
[377456917,1754416252282,-460.0,0.00027671,2]
[377456918,1754416252292,-460.0,0.00027671,2]
[377456919,1754416252301,-460.0,0.00027671,2]
[377456920,1754416252310,-748.97,0.00027671,2]
[377456921,1754416252319,-460.0,0.00027671,2]
[377456922,1754416252331,-460.0,0.00027671,2]
[377456923,1754416252341,-460.0,0.00027671,2]
[377456924,1754416252354,-460.0,0.00027671,2]
[377456925,1754416252363,-460.0,0.00027671,2]
[377456926,1754416252373,-389.64170238,0.00027671,2]
[377456928,1754416252383,-460.0,0.00027671,2]
[377456929,1754416252393,-460.0,0.00027671,2]
[377456930,1754416252403,-460.0,0.00027671,2]
[377456931,1754416252413,-460.0,0.00027671,2]
[377456932,1754416252425,-3138.65,0.00027671,2]
[377456933,1754416252435,-460.0,0.00027671,2]
[377456934,1754416252445,-460.0,0.00027671,2]
[377456935,1754416252455,-489.33,0.00027671,2]
[377456936,1754416252465,-460.0,0.00027671,2]
[377456937,1754416252474,-460.0,0.00027671,2]
[377456938,1754416252483,-3180.74,0.00027671,2]
[377456939,1754416252493,-460.0,0.00027671,2]
[377456940,1754416252502,-2230.2,0.00027671,2]
[377456941,1754416252513,-460.0,0.00027671,2]
[377456942,1754416252522,-460.0,0.00027671,2]
[377456943,1754416252532,-460.0,0.00027671,2]
[377456944,1754416252542,-1930.76,0.00027671,2]
[377456945,1754416252552,-460.0,0.00027671,2]
[377456946,1754416252562,-460.0,0.00027671,2]
[377456947,1754416252572,-460.0,0.00027671,2]
[377456948,1754416252582,-460.0,0.00027671,2]
[377456949,1754416252591,-460.0,0.00027671,2]
[377456951,1754416252600,-560.35,0.00027671,2]
[377456952,1754416252610,-460.0,0.00027671,2]
[377456953,1754416252619,-460.0,0.00027671,2]
[377456954,1754416252629,-460.0,0.00027671,2]
[377456955,1754416252638,-727.87,0.00027671,2]
[377456957,1754416252648,-460.0,0.00027671,2]
[377456958,1754416252657,-460.0,0.00027671,2]
[377456959,1754416252666,-460.0,0.00027671,2]
[377456960,1754416252675,-460.0,0.00027671,2]
[377456961,1754416252684,-460.0,0.00027671,2]
[377456962,1754416252694,-1127.9,0.00027671,2]
[377456963,1754416252703,-460.0,0.00027671,2]
[377456964,1754416252713,-460.0,0.00027671,2]
[377456965,1754416252722,-460.0,0.00027671,2]
[377456966,1754416252731,-460.0,0.00027671,2]
[377456967,1754416252742,-460.0,0.00027671,2]
[377456968,1754416252753,-229.12695468,0.00027671,2]
[377456969,1754416252762,-460.0,0.00027671,2]
[377456970,1754416252772,-1550.17,0.00027671,2]
[377456971,1754416252782,-465.20510863,0.00027671,2]
[377456972,1754416252791,-460.0,0.00027671,2]
[377456973,1754416252800,-2106.63,0.00027671,2]
[377456974,1754416252810,-460.0,0.00027671,2]
[377456975,1754416252819,-460.0,0.00027671,2]
[377456976,1754416252830,-337.79298178,0.00027671,2]
[377456977,1754416252839,-460.0,0.00027671,2]
[377456978,1754416252848,-569.87,0.00027671,2]
[377456979,1754416252857,-3854.83,0.00027671,2]
[377456980,1754416252867,-460.0,0.00027671,2]
[377456981,1754416252875,-460.0,0.00027671,2]
[377456982,1754416252884,-714.24,0.00027671,2]
[377456983,1754416252894,-541.08,0.00027671,2]
[377456985,1754416252903,-460.0,0.00027671,2]
[377456986,1754416252913,-460.0,0.00027671,2]
[377456987,1754416252923,-460.0,0.00027671,2]
[377456988,1754416252933,-460.0,0.00027671,2]
[377456989,1754416252943,-460.0,0.00027671,2]
[377456990,1754416252953,-460.0,0.00027671,2]
[377456991,1754416252964,-300.0,0.00027673,5]
[377456992,1754416253059,-500.0,0.00027673,5]
[377456993,1754416253070,-500.0,0.00027673,5]
[377456995,1754416253081,-150.0,0.00027673,3]
[377456996,1754416253090,-500.0,0.00027673,5]
[377456997,1754416253100,-500.0,0.00027673,5]
[377456998,1754416253109,-500.0,0.00027673,5]
[377456999,1754416253119,-500.0,0.00027673,5]
[377457000,1754416253127,-503.15138221,0.00027673,5]
[377457001,1754416253137,-500.0,0.00027673,5]
[377457002,1754416253146,-500.0,0.00027673,5]
[377457003,1754416253156,-504.20056297,0.00027673,5]
[377457004,1754416253165,-500.0,0.00027673,5]
[377457005,1754416253175,-503.0538355,0.00027673,5]
[377457006,1754416253184,-500.0,0.00027673,5]
[377457007,1754416253193,-500.0,0.00027673,5]
[377457008,1754416253203,-500.0,0.00027673,5]
[377457009,1754416253212,-500.0,0.00027673,5]
[377457010,1754416253221,-500.0,0.00027673,5]
[377457011,1754416253230,-500.0,0.00027673,5]
[377457012,1754416253239,-500.0,0.00027673,5]
[377457013,1754416253248,-520.68218373,0.00027673,5]
[377457014,1754416253257,-512.9978651,0.00027673,5]
[377457015,1754416253267,-500.0,0.00027673,5]
[377457016,1754416253276,-500.0,0.00027673,5]
[377457017,1754416253285,-500.0,0.00027673,5]
[377457018,1754416253295,-500.0,0.00027673,2]
[377457019,1754416253304,-500.0,0.00027673,5]
[377457020,1754416253313,-444.55153686,0.00027673,5]
[377457021,1754416253322,-500.0,0.00027673,5]
[377457022,1754416253331,-500.0,0.00027673,5]
[377457023,1754416253341,-500.0,0.00027673,5]
[377457024,1754416253354,-162.5,0.00027686,15]
[377457025,1754416253364,-160.0,0.000277,2]
[377457026,1754416253373,-2814.25755047,0.00027755,2]
[377457027,1754416253383,-198.95,0.00027756,15]
[377457028,1754416253393,-162.5,0.00027786,15]
[377457029,1754416253403,-500.0,0.00027837,2]
[377457030,1754416253412,-9093.75753143,0.00027845,2]
[377457031,1754416253421,-198.95,0.00027856,15]
[377457032,1754416253432,-162.5,0.00027886,15]
[377457033,1754416253441,-151.0,0.000279,12]
[377457034,1754416253451,-2000.0,0.00027916,5]
[377457035,1754416253460,-504.12199489,0.00027916,5]
[377457036,1754416253469,-2000.0,0.00027916,5]
[377457037,1754416253479,-2000.0,0.00027916,5]
[377457038,1754416253488,-2000.0,0.00027916,5]
[377457039,1754416253498,-500.0,0.00027921,5]
[377457040,1754416253507,-735.82297017,0.00027921,5]
[377457041,1754416253517,-504.43512792,0.00027921,5]
[377457042,1754416253526,-1000.0,0.00027921,2]
[377457043,1754416253535,-250.0,0.00027921,5]
[377457044,1754416253545,-501.80727516,0.00027921,5]
[377457045,1754416253554,-1000.0,0.00027921,5]
[377457046,1754416253565,-1000.0,0.00027921,5]
[377457047,1754416253575,-500.0,0.00027921,5]
[377457048,1754416253585,-500.0,0.00027921,5]
[377457049,1754416253595,-1002.48038745,0.00027921,5]
[377457050,1754416253604,-1000.0,0.00027921,5]
[377457051,1754416253614,-275.76878478,0.00027921,5]
[377457052,1754416253623,-1031.09580755,0.00027921,5]
[377457054,1754416253632,-500.0,0.00027921,5]
[377457055,1754416253641,-1000.0,0.00027921,5]
[377457056,1754416253651,-1000.0,0.00027921,5]
[377457057,1754416253660,-1001.73486318,0.00027921,5]
[377457058,1754416253670,-503.41513277,0.00027921,5]
[377457059,1754416253680,-1000.0,0.00027921,5]
[377457060,1754416253692,-1000.0,0.00027921,5]
[377457061,1754416253702,-1000.0,0.00027921,5]
[377457062,1754416253711,-1000.0,0.00027921,5]
[377457063,1754416253721,-525.60727636,0.00027921,5]
[377457064,1754416253731,-1000.0,0.00027921,5]
[377457065,1754416253740,-1000.0,0.00027921,5]
[377457066,1754416253750,-501.38354254,0.00027921,5]
[377457068,1754416253759,-1000.0,0.00027921,5]
[377457069,1754416253768,-601.2282729,0.00027921,5]
[377457070,1754416253778,-1000.0,0.00027921,5]
[377457071,1754416253787,-501.1736456,0.00027921,5]
[377457072,1754416253798,-1000.0,0.00027921,5]
[377457073,1754416253808,-599.83262584,0.00027921,5]
[377457074,1754416253817,-1005.89293748,0.00027921,5]
[377457075,1754416253827,-1000.0,0.00027921,5]
[377457076,1754416253836,-1000.0,0.00027921,5]
[377457077,1754416253846,-1000.0,0.00027921,5]
[377457078,1754416253856,-327.68378311,0.00027945,2]
[377457079,1754416253866,-460.0,0.00027945,2]
[377457080,1754416253876,-537.02337628,0.00027945,2]
[377457081,1754416253886,-460.0,0.00027945,2]
[377457083,1754416253896,-460.0,0.00027945,2]
[377457084,1754416253906,-460.0,0.00027945,2]
[377457085,1754416253916,-460.0,0.00027945,2]
[377457086,1754416253925,-460.0,0.00027945,2]
[377457087,1754416253935,-460.0,0.00027945,2]
[377457088,1754416253944,-460.0,0.00027945,2]
[377457089,1754416253953,-460.0,0.00027945,2]
[377457090,1754416253962,-460.0,0.00027945,2]
[377457091,1754416253972,-460.0,0.00027945,2]
[377457092,1754416253981,-460.0,0.00027945,2]
[377457093,1754416253991,-464.2556027,0.00027945,2]
[377457094,1754416254001,-857.66,0.00027945,2]
[377457095,1754416254011,-466.45176563,0.00027945,2]
[377457096,1754416254021,-460.0,0.00027945,2]
[377457097,1754416254030,-460.0,0.00027945,2]
[377457099,1754416254040,-460.0,0.00027945,2]
[377457100,1754416254049,-663.23,0.00027945,2]
[377457101,1754416254060,-464.16573078,0.00027945,2]
[377457102,1754416254070,-464.19185813,0.00027945,2]
[377457103,1754416254081,-460.0,0.00027945,2]
[377457105,1754416254091,-658.86,0.00027945,2]
[377457106,1754416254102,-460.0,0.00027945,2]
[377457107,1754416254112,-460.0,0.00027945,2]
[377457108,1754416254121,-460.0,0.00027945,2]
[377457109,1754416254130,-460.0,0.00027945,2]
[377457110,1754416254140,-460.0,0.00027945,2]
[377457111,1754416254149,-460.0,0.00027945,2]
[377457112,1754416254158,-6772.75,0.00027945,2]
[377457113,1754416254167,-460.0,0.00027945,2]
[377457114,1754416254177,-486.05589808,0.00027945,2]
[377457115,1754416254186,-460.0,0.00027945,2]
[377457116,1754416254195,-1541.2,0.00027945,2]
[377457118,1754416254205,-460.0,0.00027945,2]
[377457119,1754416254214,-460.0,0.00027945,2]
[377457120,1754416254223,-460.0,0.00027945,2]
[377457121,1754416254233,-460.0,0.00027945,2]
[377457122,1754416254243,-487.64233149,0.00027945,2]
[377457123,1754416254252,-460.0,0.00027945,2]
[377457124,1754416254261,-420.03799397,0.00027945,2]
[377457125,1754416254270,-460.0,0.00027945,2]
[377457126,1754416254279,-460.0,0.00027945,2]
[377457127,1754416254289,-461.96785771,0.00027945,2]
[377457128,1754416254298,-460.0,0.00027945,2]
[377457129,1754416254307,-460.0,0.00027945,2]
[377457130,1754416254524,-460.0,0.00027945,2]
[377457131,1754416254534,-812.68,0.00027945,2]
[377457132,1754416254543,-460.0,0.00027945,2]
[377457133,1754416254553,-460.0,0.00027945,2]
[377457134,1754416254563,-740.38,0.00027945,2]
[377457135,1754416254572,-460.0,0.00027945,2]
[377457136,1754416254583,-460.0,0.00027945,2]
[377457137,1754416254592,-1550.45,0.00027945,2]
[377457138,1754416254602,-460.0,0.00027945,2]
[377457139,1754416254611,-254.69678522,0.00027945,2]
[377457140,1754416254621,-532.66,0.00027945,2]
[377457141,1754416254630,-460.0,0.00027945,2]
[377457142,1754416254640,-460.0,0.00027945,2]
[377457143,1754416254649,-460.0,0.00027945,2]
[377457144,1754416254658,-460.0,0.00027945,2]
[377457145,1754416254667,-460.0,0.00027945,2]
[377457146,1754416254677,-460.0,0.00027945,2]
[377457147,1754416254686,-460.0,0.00027945,2]
[377457148,1754416254697,-1978.84,0.00027945,2]
[377457149,1754416254706,-460.0,0.00027945,2]
[377457150,1754416254716,-1378.33,0.00027945,2]
[377457151,1754416254725,-460.0,0.00027945,2]
[377457152,1754416254815,-460.0,0.00027945,2]
[377457153,1754416254827,-460.0,0.00027945,2]
[377457154,1754416254836,-439.72473435,0.00027945,2]
[377457155,1754416254846,-460.0,0.00027945,2]
[377457156,1754416254856,-460.0,0.00027945,2]
[377457158,1754416254867,-460.0,0.00027945,2]
[377457159,1754416254876,-460.0,0.00027945,2]
[377457160,1754416254886,-460.0,0.00027945,2]
[377457161,1754416254895,-460.0,0.00027945,2]
[377457162,1754416254904,-460.0,0.00027945,2]
[377457163,1754416254914,-460.0,0.00027945,2]
[377457164,1754416254923,-460.0,0.00027945,2]
[377457165,1754416254932,-460.0,0.00027945,2]
[377457166,1754416254942,-460.0,0.00027945,2]
[377457167,1754416254951,-464.13455994,0.00027945,2]
[377457168,1754416254960,-460.0,0.00027945,2]
[377457169,1754416254971,-460.0,0.00027945,2]
[377457170,1754416254980,-460.0,0.00027945,2]
[377457171,1754416254990,-470.92059498,0.00027945,2]
[377457172,1754416255000,-460.0,0.00027945,2]
[377457173,1754416255009,-460.0,0.00027945,2]
[377457174,1754416255019,-460.0,0.00027945,2]
[377457175,1754416255029,-460.0,0.00027945,2]
[377457176,1754416255039,-460.0,0.00027945,2]
[377457178,1754416255048,-460.0,0.00027945,2]
[377457179,1754416255057,-460.0,0.00027945,2]
[377457180,1754416255067,-460.0,0.00027945,2]
[377457181,1754416255077,-460.0,0.00027945,2]
[377457182,1754416255086,-460.0,0.00027945,2]
[377457183,1754416255095,-460.0,0.00027945,2]
[377457184,1754416255104,-613.34,0.00027945,2]
[377457185,1754416255114,-460.0,0.00027945,2]
[377457186,1754416255124,-460.0,0.00027945,2]
[377457187,1754416255135,-460.0,0.00027945,2]
[377457189,1754416255144,-466.21978464,0.00027945,2]
[377457190,1754416255154,-467.38062665,0.00027945,2]
[377457191,1754416255164,-464.88634084,0.00027945,2]
[377457192,1754416255175,-460.0,0.00027945,2]
[377457193,1754416255184,-460.0,0.00027945,2]
[377457194,1754416255194,-460.0,0.00027945,2]
[377457195,1754416255204,-460.0,0.00027945,2]
[377457196,1754416255213,-460.0,0.00027945,2]
[377457197,1754416255222,-465.93980396,0.00027945,2]
[377457198,1754416255232,-468.2881098,0.00027945,2]
[377457199,1754416255241,-460.0,0.00027945,2]
[377457200,1754416255250,-469.77863494,0.00027945,2]
[377457201,1754416255259,-460.0,0.00027945,2]
[377457202,1754416255268,-460.0,0.00027945,2]
[377457203,1754416255279,-460.0,0.00027945,2]
[377457204,1754416255288,-460.0,0.00027945,2]
[377457205,1754416255297,-460.0,0.00027945,2]
[377457206,1754416255307,-460.0,0.00027945,2]
[377457207,1754416255317,-460.0,0.00027945,2]
[377457208,1754416255326,-577.91528092,0.00027945,2]
[377457209,1754416255335,-460.0,0.00027945,2]
[377457211,1754416255345,-460.0,0.00027945,2]
[377457212,1754416255358,-460.0,0.00027945,2]
[377457213,1754416255367,-460.0,0.00027945,2]
[377457214,1754416255377,-460.0,0.00027945,2]
[377457215,1754416255387,-460.0,0.00027945,2]
[377457216,1754416255398,-460.0,0.00027945,2]
[377457217,1754416255407,-460.0,0.00027945,2]
[377457218,1754416255417,-460.0,0.00027945,2]
[377457219,1754416255426,-557.90616759,0.00027945,2]
[377457220,1754416255436,-460.0,0.00027945,2]
[377457221,1754416255446,-460.0,0.00027945,2]
[377457222,1754416255455,-460.0,0.00027945,2]
[377457223,1754416255464,-460.0,0.00027945,2]
[377457224,1754416255473,-460.0,0.00027945,2]
[377457225,1754416255483,-460.0,0.00027945,2]
[377457226,1754416255492,-460.0,0.00027945,2]
[377457227,1754416255501,-1321.58,0.00027945,2]
[377457229,1754416255511,-460.0,0.00027945,2]
[377457230,1754416255520,-460.0,0.00027945,2]
[377457231,1754416255530,-460.0,0.00027945,2]
[377457232,1754416255539,-184.89362846,0.00027945,2]
[377457233,1754416255549,-1103.62,0.00027945,2]
[377457234,1754416255558,-460.0,0.00027945,2]
[377457235,1754416255568,-469.78608127,0.00027945,2]
[377457236,1754416255578,-463.58769585,0.00027945,2]
[377457237,1754416255587,-460.0,0.00027945,2]
[377457238,1754416255597,-460.0,0.00027945,2]
[377457239,1754416255606,-7164.38,0.00027945,2]
[377457240,1754416255615,-500.0,0.00027945,2]
[377457241,1754416255624,-460.0,0.00027945,2]
[377457242,1754416255633,-427.61085433,0.00027945,2]
[377457243,1754416255643,-460.99,0.00027945,2]
[377457244,1754416255652,-460.0,0.00027945,2]
[377457245,1754416255661,-460.0,0.00027945,2]
[377457246,1754416255671,-460.0,0.00027945,2]
[377457248,1754416255680,-460.0,0.00027945,2]
[377457249,1754416255689,-460.0,0.00027945,2]
[377457250,1754416255699,-460.0,0.00027945,2]
[377457251,1754416255708,-460.0,0.00027945,2]
[377457252,1754416255717,-460.0,0.00027945,2]
[377457254,1754416255727,-460.0,0.00027945,2]
[377457255,1754416255736,-460.0,0.00027945,2]
[377457256,1754416255745,-460.0,0.00027945,2]
[377457257,1754416255755,-460.0,0.00027945,2]
[377457258,1754416255765,-91405.03,0.00027945,2]
[377457259,1754416255774,-460.0,0.00027945,2]
[377457260,1754416255783,-460.0,0.00027945,2]
[377457261,1754416255793,-434.80903619,0.00027945,2]
[377457262,1754416255802,-460.0,0.00027945,2]
[377457263,1754416255811,-460.0,0.00027945,2]
[377457264,1754416255821,-460.0,0.00027945,2]
[377457265,1754416255832,-1342.06,0.00027945,2]
[377457266,1754416255841,-460.0,0.00027945,2]
[377457267,1754416255851,-502.21,0.00027945,2]
[377457269,1754416255860,-500.0,0.00027945,2]
[377457270,1754416255869,-460.0,0.00027945,2]
[377457271,1754416255879,-460.0,0.00027945,2]
[377457272,1754416255889,-1250.59,0.00027945,2]
[377457273,1754416255899,-1881.28,0.00027945,2]
[377457275,1754416255908,-460.0,0.00027945,2]
[377457276,1754416255918,-824.53,0.00027945,2]
[377457277,1754416255928,-3340.06,0.00027945,2]
[377457278,1754416255937,-460.0,0.00027945,2]
[377457279,1754416255946,-1138.15,0.00027945,2]
[377457280,1754416255955,-460.0,0.00027945,2]
[377457281,1754416255965,-460.0,0.00027945,2]
[377457282,1754416255974,-460.0,0.00027945,2]
[377457283,1754416255983,-460.0,0.00027945,2]
[377457284,1754416255992,-460.0,0.00027945,2]
[377457285,1754416256002,-460.0,0.00027945,2]
[377457286,1754416256011,-460.0,0.00027945,2]
[377457287,1754416256021,-460.0,0.00027945,2]
[377457288,1754416256030,-460.0,0.00027945,2]
[377457289,1754416256039,-460.0,0.00027945,2]
[377457290,1754416256049,-460.0,0.00027945,2]
[377457291,1754416256058,-462.75776929,0.00027945,2]
[377457292,1754416256067,-460.0,0.00027945,2]
[377457293,1754416256076,-494.61,0.00027945,2]
[377457294,1754416256086,-460.0,0.00027945,2]
[377457295,1754416256095,-460.0,0.00027945,2]
[377457296,1754416256104,-460.0,0.00027945,2]
[377457297,1754416256113,-464.13901776,0.00027945,2]
[377457298,1754416256122,-460.0,0.00027945,2]
[377457299,1754416256131,-460.0,0.00027945,2]
[377457300,1754416256140,-460.0,0.00027945,2]
[377457301,1754416256148,-460.0,0.00027945,2]
[377457302,1754416256234,-460.0,0.00027945,2]
[377457303,1754416256243,-468.36200225,0.00027945,2]
[377457304,1754416256252,-567.26,0.00027945,2]
[377457305,1754416256261,-460.0,0.00027945,2]
[377457306,1754416256269,-2164.48,0.00027945,2]
[377457307,1754416256278,-1437.23,0.00027945,2]
[377457308,1754416256287,-460.0,0.00027945,2]
[377457309,1754416256296,-500.0,0.00027945,5]
[377457310,1754416256305,-460.0,0.00027945,2]
[377457311,1754416256314,-469.2621318,0.00027945,2]
[377457312,1754416256323,-460.0,0.00027945,2]
[377457313,1754416256334,-1086.69,0.00027945,2]
[377457314,1754416256345,-460.0,0.00027945,2]
[377457315,1754416256357,-460.0,0.00027945,2]
[377457316,1754416256366,-460.0,0.00027945,2]
[377457317,1754416256375,-1308.5,0.00027945,2]
[377457318,1754416256386,-1242.29,0.00027945,2]
[377457319,1754416256396,-460.0,0.00027945,2]
[377457320,1754416256405,-460.0,0.00027945,2]
[377457321,1754416256414,-460.0,0.00027945,2]
[377457322,1754416256424,-460.0,0.00027945,2]
[377457323,1754416256434,-460.0,0.00027945,2]
[377457324,1754416256443,-460.0,0.00027945,2]
[377457325,1754416256453,-460.0,0.00027945,2]
[377457326,1754416256462,-460.0,0.00027945,2]
[377457327,1754416256471,-460.0,0.00027945,2]
[377457328,1754416256481,-738.23,0.00027945,2]
[377457329,1754416256490,-460.0,0.00027945,2]
[377457330,1754416256499,-460.0,0.00027945,2]
[377457331,1754416256508,-460.0,0.00027945,2]
[377457332,1754416256517,-460.0,0.00027945,2]
[377457333,1754416256526,-460.0,0.00027945,2]
[377457334,1754416256536,-1758.45,0.00027945,2]
[377457335,1754416256545,-1709.46,0.00027945,2]
[377457336,1754416256554,-6104.81,0.00027945,2]
[377457337,1754416256563,-460.0,0.00027945,2]
[377457338,1754416256573,-284.13241518,0.00027945,2]
[377457339,1754416256583,-465.5887698,0.00027945,2]
[377457340,1754416256593,-460.0,0.00027945,2]
[377457341,1754416256603,-460.0,0.00027945,2]
[377457342,1754416256611,-460.0,0.00027945,2]
[377457343,1754416256621,-902.91,0.00027945,2]
[377457344,1754416256630,-710.17,0.00027945,2]
[377457345,1754416256639,-1606.27,0.00027945,2]
[377457346,1754416256648,-1844.87,0.00027945,2]
[377457347,1754416256658,-476.45596173,0.00027945,2]
[377457348,1754416256667,-217.32705546,0.00027945,2]
[377457349,1754416256676,-819.41,0.00027945,2]
[377457350,1754416256686,-460.0,0.00027945,2]
[377457352,1754416256695,-462.00439334,0.00027945,2]
[377457353,1754416256704,-460.0,0.00027945,2]
[377457354,1754416256713,-460.0,0.00027945,2]
[377457355,1754416256722,-460.0,0.00027945,2]
[377457356,1754416256731,-460.0,0.00027945,2]
[377457357,1754416256740,-460.0,0.00027945,2]
[377457358,1754416256749,-460.0,0.00027945,2]
[377457359,1754416256758,-460.0,0.00027945,2]
[377457360,1754416256767,-881.55,0.00027945,2]
[377457361,1754416256776,-460.0,0.00027945,2]
[377457362,1754416256785,-460.0,0.00027945,2]
[377457363,1754416256794,-460.0,0.00027945,2]
[377457364,1754416256803,-462.25844587,0.00027945,2]
[377457365,1754416256812,-460.0,0.00027945,2]
[377457366,1754416256821,-460.0,0.00027945,2]
[377457367,1754416256831,-460.0,0.00027945,2]
[377457369,1754416256840,-558.16,0.00027945,2]
[377457370,1754416256849,-518.54,0.00027945,2]
[377457371,1754416256858,-460.0,0.00027945,2]
[377457372,1754416256868,-460.0,0.00027945,2]
[377457373,1754416256877,-1014.69294982,0.00027945,2]
[377457374,1754416256887,-460.0,0.00027945,2]
[377457375,1754416256897,-1561.24,0.00027945,2]
[377457376,1754416256906,-460.0,0.00027945,2]
[377457377,1754416256915,-463.52940731,0.00027945,2]
[377457378,1754416256924,-460.0,0.00027945,2]
[377457379,1754416256934,-464.47872777,0.00027945,2]
[377457381,1754416256943,-460.0,0.00027945,2]
[377457382,1754416256952,-460.0,0.00027945,2]
[377457383,1754416256961,-464.56576644,0.00027945,2]
[377457384,1754416256971,-460.0,0.00027945,2]
[377457385,1754416256980,-3008.19,0.00027945,2]
[377457386,1754416256989,-460.0,0.00027945,2]
[377457387,1754416256998,-470.29708397,0.00027945,2]
[377457389,1754416257007,-460.0,0.00027945,2]
[377457390,1754416257016,-466.69684792,0.00027945,2]
[377457391,1754416257026,-460.0,0.00027945,2]
[377457392,1754416257035,-460.0,0.00027945,2]
[377457393,1754416257044,-844.75,0.00027945,2]
[377457394,1754416257053,-460.0,0.00027945,2]
[377457395,1754416257062,-460.0,0.00027945,2]
[377457397,1754416257071,-460.0,0.00027945,2]
[377457398,1754416257081,-460.0,0.00027945,2]
[377457399,1754416257090,-460.0,0.00027945,2]
[377457400,1754416257099,-1526.12,0.00027945,2]
[377457401,1754416257108,-460.0,0.00027945,2]
[377457402,1754416257117,-1209.84,0.00027945,2]
[377457403,1754416257127,-303.33137001,0.00027945,2]
[377457404,1754416257137,-163.43647608,0.00027945,2]
[377457405,1754416257146,-463.61226067,0.00027945,2]
[377457406,1754416257156,-460.0,0.00027945,2]
[377457407,1754416257165,-734.51,0.00027945,2]
[377457408,1754416257175,-460.0,0.00027945,2]
[377457409,1754416257184,-460.0,0.00027945,2]
[377457410,1754416257193,-460.0,0.00027945,2]
[377457411,1754416257202,-460.0,0.00027945,2]
[377457412,1754416257212,-460.0,0.00027945,2]
[377457413,1754416257221,-460.0,0.00027945,2]
[377457414,1754416257230,-674.37,0.00027945,2]
[377457415,1754416257240,-460.0,0.00027945,2]